bitfinex/quotes_SOLUSD_20241031
["timestamp","ask_amount","ask_price","bid_price","bid_amount"]
[1730389140516,9.65853353,171.13,171.09,20.4568]
[1730389141746,5.8432,171.14,171.09,30.11533353]
[1730389141747,15.50173353,171.14,171.09,30.11533353]
[1730389146753,9.65853353,171.13,171.09,14.6121]
[1730389147947,9.65853353,171.13,171.09,20.4569]
[1730389151950,9.65853353,171.14,171.09,20.4569]
[1730389153045,15.50183353,171.14,171.09,20.4569]
[1730389153542,15.50183353,171.14,171.09,30.11543353]
[1730389154142,15.50183353,171.14,171.09,20.4569]
[1730389154655,23.0639,171.16,171.07,5.8453]
[1730389154656,9.65853353,171.11,171.07,5.8453]
[1730389155162,9.65853353,171.12,171.07,15.50383353]
[1730389155859,15.50253353,171.12,171.07,15.50383353]
[1730389156352,9.65853353,171.11,171.07,5.8453]
[1730389156652,9.78402353,171.11,171.06,30.11843353]
[1730389157847,9.65853353,171.1,171.06,20.4599]
[1730389158449,9.65853353,171.1,171.06,14.6142]
[1730389159752,15.62882353,171.09,171.04,16.11550883]
[1730389159959,15.50333353,171.09,171.04,16.11550883]
[1730389160347,9.78402353,171.08,171.04,0.6104753]
[1730389160750,9.65853353,171.05,171.04,0.6104753]
[1730389161358,9.78402353,171.05,171.04,0.6104753]
[1730389161935,15.63022353,171.05,171.04,0.6104753]
[1730389164637,38.12392353,171.05,171.04,0.6104753]
[1730389166258,58.12392353,171.05,171.04,0.6104753]
[1730389166465,81.90080753,171.05,171.04,0.6104753]
[1730389171838,82.00080753,171.05,171.04,0.6104753]
[1730389172240,0.1,171.03,170.94,14.6248]
[1730389172453,0.12549,170.97,170.94,14.6248]
[1730389175472,9.65853353,170.98,170.94,14.6248]
[1730389175653,9.65853353,170.99,170.95,9.65853353]
[1730389175854,5.8476,171.01,170.95,9.65853353]
[1730389175855,9.65853353,171.0,170.95,9.65853353]
[1730389176852,9.65853353,171.0,170.96,5.8493]
[1730389177244,9.65853353,170.99,170.96,5.8493]
[1730389177546,9.65853353,170.98,170.94,20.4744]
[1730389177972,0.12549,170.97,170.93,9.65853353]
[1730389178268,0.12549,170.95,170.91,30.13673353]
[1730389178489,9.65853353,170.93,170.88,24.28833353]
[1730389178681,9.65853353,170.93,170.88,30.14023353]
[1730389180250,9.78402353,170.92,170.88,20.4817]
[1730389180454,9.65853353,170.91,170.88,20.4817]
[1730389180653,9.65853353,170.89,170.87,6.4627753]
[1730389180876,9.65853353,170.9,170.87,6.4627753]
[1730389181353,5.97629,170.92,170.87,15.2414753]
[1730389181354,9.65853353,170.89,170.87,15.2414753]
[1730389181555,9.65853353,170.89,170.87,0.6104753]
[1730389182258,9.78402353,170.88,170.87,0.6104753]
[1730389182976,15.63602353,170.88,170.87,0.6104753]
[1730389183157,0.1,170.84,170.79,6.08755335]
[1730389183357,9.78402353,170.8,170.76,5.8559]
[1730389183558,9.65853353,170.79,170.76,5.8559]
[1730389184259,9.65853353,170.79,170.75,5.8565]
[1730389184684,9.65853353,170.79,170.75,5.3565]
[1730389185282,9.65853353,170.78,170.74,20.4982]
[1730389186255,9.65853353,170.78,170.74,14.6414]
[1730389186585,9.65853353,170.79,170.74,24.29993353]
[1730389186878,9.65853353,170.81,170.76,9.65853353]
[1730389187777,9.65853353,170.81,170.75,9.65853353]
[1730389188078,9.65853353,170.8,170.75,9.65853353]
[1730389188282,9.65853353,170.81,170.75,9.65853353]
[1730389188467,9.65853353,170.8,170.76,5.8561]
[1730389188863,9.65853353,170.8,170.76,20.4965]
[1730389189765,9.65853353,170.81,170.76,20.4965]
[1730389189965,9.65853353,170.81,170.76,9.65853353]
[1730389191181,9.65853353,170.81,170.77,5.8558]
[1730389191361,9.65853353,170.83,170.77,30.15383353]
[1730389195470,9.65853353,170.82,170.77,30.15383353]
[1730389195665,9.65853353,170.84,170.78,9.65853353]
[1730389195866,9.65853353,170.86,170.81,9.65853353]
[1730389197004,9.65853353,170.85,170.8,24.29483353]
[1730389197191,15.51123353,170.86,170.8,24.29483353]
[1730389197988,15.51123353,170.86,170.8,30.14963353]
[1730389198490,9.65853353,170.84,170.8,20.4911]
[1730389198698,9.65853353,170.85,170.8,30.14963353]
[1730389199389,9.65853353,170.87,170.82,9.65853353]
[1730389200174,9.65853353,170.87,170.83,5.8537]
[1730389203084,15.51093353,170.87,170.83,5.8537]
[1730389203685,9.78402353,170.88,170.83,20.4881]
[1730389204283,15.63612353,170.88,170.83,30.14663353]
[1730389204878,15.63612353,170.88,170.83,20.4881]
[1730389206590,9.65853353,170.87,170.83,20.4881]
[1730389206787,15.51093353,170.87,170.83,20.4881]
[1730389207501,9.65853353,170.86,170.83,20.4881]
[1730389207795,5.8524,170.87,170.83,9.65853353]
[1730389208586,15.51093353,170.87,170.82,9.65853353]
[1730389209503,15.51093353,170.87,170.83,5.8537]
[1730389209697,5.8524,170.87,170.83,15.51223353]
[1730389210917,15.63612353,170.88,170.83,15.51223353]
[1730389212183,5.97759,170.88,170.83,15.51223353]
[1730389212788,15.63612353,170.88,170.83,9.65853353]
[1730389214202,5.97759,170.88,170.83,9.65853353]
[1730389214403,5.97759,170.88,170.83,15.51213353]
[1730389215703,5.97759,170.88,170.84,9.65853353]
[1730389217304,9.65853353,170.94,170.87,9.65853353]
[1730389217602,9.65853353,170.94,170.82,38.63413412]
[1730389217603,9.65853353,170.94,170.89,9.65853353]
[1730389217805,9.65853353,170.93,170.88,9.65853353]
[1730389218102,9.65853353,170.92,170.87,9.65853353]
[1730389218303,9.65853353,170.9,170.84,9.65853353]
[1730389218509,20.575,170.94,170.82,9.65853353]
[1730389218510,9.65853353,170.87,170.82,9.65853353]
[1730389218741,9.65853353,170.87,170.81,9.65853353]
[1730389219222,0.12549,170.86,170.81,9.65853353]
[1730389219382,0.12549,170.86,170.82,9.65853353]
[1730389219588,5.8527,170.86,170.82,9.65853353]
[1730389219898,5.8527,170.86,170.81,15.51273353]
[1730389220820,5.8527,170.86,170.82,9.65853353]
[1730389221319,0.12549,170.85,170.81,9.65853353]
[1730389222121,0.12549,170.85,170.81,15.51293353]
[1730389223424,0.12549,170.85,170.81,5.8544]
[1730389223611,0.12549,170.85,170.81,15.51293353]
[1730389223792,0.12549,170.86,170.83,9.65853353]
[1730389225418,0.12549,170.86,170.82,15.51243353]
[1730389226105,5.97789,170.87,170.82,15.51243353]
[1730389226309,5.97789,170.87,170.82,30.14763353]
[1730389227300,0.12549,170.87,170.83,9.65853353]
[1730389227815,9.65853353,170.92,170.86,9.65853353]
[1730389228000,5.8511,170.91,170.86,15.51103353]
[1730389228201,37.61163353,170.93,170.88,9.65853353]
[1730389228425,9.65853353,170.95,170.89,9.65853353]
[1730389229499,5.8502,170.94,170.89,15.51003353]
[1730389229701,0.12549,170.93,170.89,15.51003353]
[1730389230019,5.8486,170.98,170.92,9.65853353]
[1730389230225,5.8486,170.98,170.94,9.65853353]
[1730389230523,5.8486,170.98,170.93,9.65853353]
[1730389230524,9.65853353,170.98,170.93,9.65853353]
[1730389231604,15.50723353,170.98,170.93,15.50883353]
[1730389232222,9.65853353,170.97,170.92,15.50913353]
[1730389232600,9.65853353,170.96,170.91,24.28523353]
[1730389233622,9.65853353,170.96,170.91,30.13623353]
[1730389233914,15.50783353,170.96,170.91,30.13623353]
[1730389234128,5.8493,170.96,170.92,9.65853353]
[1730389234421,5.8493,170.96,170.91,30.13623353]
[1730389237723,9.65853353,170.96,170.91,30.13623353]
[1730389238937,15.50803353,170.96,170.91,30.13623353]
[1730389239096,5.8495,170.96,170.91,30.13623353]
[1730389240725,15.50803353,170.96,170.91,24.28523353]
[1730389242419,15.50803353,170.96,170.91,30.13623353]
[1730389242733,5.8495,170.96,170.91,30.13623353]
[1730389244334,5.8495,170.96,170.92,9.65853353]
[1730389246427,15.50803353,170.96,170.91,9.65853353]
[1730389246806,5.8495,170.96,170.92,9.65853353]
[1730389248336,15.50803353,170.96,170.91,9.65853353]
[1730389248637,15.50803353,170.96,170.9,9.65853353]
[1730389249140,9.65853353,170.95,170.9,9.65853353]
[1730389250447,15.50853353,170.95,170.9,15.50983353]
[1730389252327,15.50853353,170.95,170.89,24.28733353]
[1730389252711,9.65853353,170.94,170.89,30.13903353]
[1730389253829,9.65853353,170.95,170.89,30.13903353]
[1730389254138,9.65853353,170.93,170.89,14.6288]
[1730389255817,15.50903353,170.93,170.89,14.6288]
[1730389256439,5.8505,170.93,170.89,14.6288]
[1730389257041,5.8505,170.93,170.89,24.28733353]
[1730389258141,5.85,170.94,170.91,9.65853353]
[1730389259452,0.12549,170.95,170.91,9.65853353]
[1730389261029,9.78402353,170.95,170.9,9.65853353]
[1730389261261,9.65853353,170.94,170.89,30.13903353]
[1730389261449,15.50873353,170.94,170.89,30.13903353]
[1730389262931,5.8502,170.94,170.9,9.65853353]
[1730389264327,5.8502,170.94,170.89,9.65853353]
[1730389265042,5.8502,170.94,170.9,9.65853353]
[1730389266343,5.8486,170.98,170.93,9.65853353]
[1730389266528,25.97409,170.98,170.93,9.65853353]
[1730389266854,9.65853353,170.97,170.91,9.65853353]
[1730389267053,9.78402353,170.96,170.91,9.65853353]
[1730389267233,9.65853353,170.94,170.89,9.65853353]
[1730389267958,8.42433282,170.97,170.89,9.65853353]
[1730389267959,9.65853353,170.95,170.89,9.65853353]
[1730389268444,9.65853353,170.95,170.89,15.51003353]
[1730389268445,5.85,170.94,170.89,15.51003353]
[1730389268642,5.85,170.94,170.9,9.65853353]
[1730389269735,5.85,170.94,170.91,9.65853353]
[1730389270852,5.8493,170.96,170.91,9.65853353]
[1730389271038,0.12549,170.95,170.91,9.65853353]
[1730389271560,0.12549,170.97,170.92,9.65853353]
[1730389271733,5.849,170.97,170.93,9.65853353]
[1730389272455,5.8485,170.99,170.95,9.65853353]
[1730389273040,11.9268288,171.0,170.96,9.65853353]
[1730389273345,5.8476,171.01,170.97,9.65853353]
[1730389273730,5.8476,171.01,170.93,9.65853353]
[1730389273731,9.65853353,170.98,170.93,9.65853353]
[1730389273928,9.65853353,170.97,170.92,9.65853353]
[1730389274131,9.65853353,170.98,170.92,9.65853353]
[1730389274830,15.50743353,170.97,170.92,15.50913353]
[1730389275049,15.50743353,170.97,170.92,5.8506]
[1730389275542,15.50743353,170.97,170.91,9.65853353]
[1730389276358,15.50743353,170.97,170.92,9.65853353]
[1730389276532,15.50743353,170.97,170.91,9.65853353]
[1730389276852,9.65853353,170.96,170.91,9.65853353]
[1730389277060,9.65853353,170.95,170.89,15.51013353]
[1730389278768,15.50823353,170.95,170.89,15.51013353]
[1730389279055,9.65853353,170.94,170.89,9.65853353]
[1730389279353,9.65853353,170.9,170.86,16.4278]
[1730389279570,9.65853353,170.9,170.84,9.65853353]
[1730389279932,9.65853353,170.9,170.85,9.65853353]
[1730389280562,9.65853353,170.88,170.82,24.85113353]
[1730389280762,5.8516,170.9,170.82,24.85113353]
[1730389280763,9.65853353,170.87,170.82,24.85113353]
[1730389281364,9.65853353,170.87,170.82,9.65853353]
[1730389281538,9.65853353,170.86,170.81,9.65853353]
[1730389283549,15.51123353,170.86,170.81,9.65853353]
[1730389284071,9.65853353,170.85,170.8,9.65853353]
[1730389284236,15.51163353,170.85,170.8,9.65853353]
[1730389284549,9.65853353,170.84,170.78,25.68573353]
[1730389285067,9.65853353,170.83,170.78,25.68573353]
[1730389285560,15.51223353,170.83,170.78,25.68573353]
[1730389286737,15.51223353,170.83,170.78,16.0272]
[1730389288162,15.51223353,170.83,170.78,25.68573353]
[1730389288864,9.65853353,170.82,170.77,9.65853353]
[1730389289970,9.65853353,170.8,170.74,26.04413353]
[1730389290949,5.8551,170.79,170.74,26.04413353]
[1730389291143,15.51363353,170.79,170.74,16.3856]
[1730389291561,5.8551,170.79,170.74,26.04413353]
[1730389293790,9.65853353,170.78,170.72,9.65853353]
[1730389294149,9.65853353,170.77,170.71,9.65853353]
[1730389294847,9.65853353,170.76,170.7,9.65853353]
[1730389295039,9.65853353,170.74,170.69,21.95734786]
[1730389295244,9.65853353,170.74,170.69,0.6104753]
[1730389295458,9.65853353,170.75,170.7,9.65853353]
[1730389296045,5.8568,170.74,170.69,10.26900883]
[1730389296347,15.51533353,170.74,170.69,10.26900883]
[1730389296749,15.51533353,170.74,170.69,0.6104753]
[1730389297370,9.65853353,170.73,170.69,0.6104753]
[1730389298155,5.8575,170.72,170.69,0.6104753]
[1730389299262,9.65853353,170.72,170.69,0.6104753]
[1730389299446,9.65853353,170.7,170.69,0.6104753]
[1730389300871,9.78402353,170.7,170.69,0.6104753]
[1730389301458,15.64222353,170.7,170.69,0.6104753]
[1730389302179,41.55605756,170.7,170.69,0.6104753]
[1730389302466,65.33294156,170.7,170.69,0.6104753]
[1730389303079,9.65853353,170.62,170.57,30.67353353]
[1730389303574,9.65853353,170.64,170.58,9.65853353]
[1730389303955,9.65853353,170.63,170.58,9.65853353]
[1730389305052,5.8609,170.62,170.58,9.65853353]
[1730389305950,5.8604,170.64,170.6,9.65853353]
[1730389306151,5.8598,170.66,170.61,9.65853353]
[1730389306752,15.51833353,170.66,170.61,9.65853353]
[1730389306949,15.51863353,170.65,170.6,9.65853353]
[1730389307252,9.65853353,170.64,170.59,9.65853353]
[1730389307473,5.8601,170.65,170.61,9.65853353]
[1730389307775,5.8601,170.65,170.6,9.65853353]
[1730389307966,15.51863353,170.65,170.59,24.31353353]
[1730389308381,14.647,170.69,170.59,24.31353353]
[1730389308382,9.65853353,170.64,170.59,24.31353353]
[1730389308555,5.8606,170.63,170.59,24.31353353]
[1730389309149,5.8606,170.63,170.59,9.65853353]
[1730389309360,5.8606,170.63,170.58,9.65853353]
[1730389309555,5.8606,170.63,170.57,15.1527]
[1730389309556,9.65853353,170.6,170.55,9.65853353]
[1730389309763,9.65853353,170.61,170.56,9.65853353]
[1730389310075,9.65853353,170.62,170.57,9.65853353]
[1730389310667,5.8613,170.61,170.57,9.65853353]
[1730389312768,15.51913353,170.63,170.57,9.65853353]
[1730389312975,15.51913353,170.63,170.58,9.65853353]
[1730389313158,9.65853353,170.62,170.57,9.65853353]
[1730389313655,15.51913353,170.63,170.58,9.65853353]
[1730389313984,5.8606,170.63,170.58,9.65853353]
[1730389314474,25.58733353,170.66,170.61,9.65853353]
[1730389314649,5.8599,170.65,170.61,9.65853353]
[1730389314854,5.8599,170.65,170.56,23.776884]
[1730389314855,5.8599,170.65,170.62,9.65853353]
[1730389315069,5.8599,170.65,170.61,9.65853353]
[1730389315578,5.8599,170.65,170.62,9.65853353]
[1730389315951,5.8599,170.65,170.57,20.5193]
[1730389315952,5.8599,170.65,170.61,9.65853353]
[1730389316883,5.8599,170.65,170.62,9.65853353]
[1730389317552,15.51813353,170.66,170.61,9.65853353]
[1730389318162,9.65853353,170.67,170.62,9.65853353]
[1730389318370,15.51773353,170.68,170.62,9.65853353]
[1730389318978,9.65853353,170.67,170.62,9.65853353]
[1730389319281,9.65853353,170.65,170.6,9.65853353]
[1730389319786,20.5064,170.68,170.6,9.65853353]
[1730389319787,9.65853353,170.66,170.6,9.65853353]
[1730389320352,5.8596,170.66,170.62,9.65853353]
[1730389322458,5.8596,170.66,170.61,9.65853353]
[1730389322775,15.51813353,170.66,170.61,9.65853353]
[1730389323456,9.65853353,170.67,170.62,9.65853353]
[1730389323658,5.8589,170.68,170.63,9.65853353]
[1730389323879,5.8589,170.68,170.64,9.65853353]
[1730389324475,5.8586,170.69,170.65,9.65853353]
[1730389324663,5.8586,170.69,170.59,15.1755]
[1730389324664,5.8578,170.71,170.67,9.65853353]
[1730389324863,6.5278,170.72,170.69,9.65853353]
[1730389325075,9.65853353,170.73,170.68,9.65853353]
[1730389325676,9.65853353,170.72,170.67,9.65853353]
[1730389325896,9.65853353,170.72,170.66,9.65853353]
[1730389327263,5.8578,170.71,170.66,9.65853353]
[1730389328072,15.51633353,170.71,170.66,9.65853353]
[1730389328274,5.8578,170.71,170.66,9.65853353]
[1730389328477,5.8578,170.71,170.65,5.8596]
[1730389328478,25.14713353,170.75,170.69,9.65853353]
[1730389328807,9.65853353,170.72,170.66,9.65853353]
[1730389329290,9.65853353,170.71,170.65,9.65853353]
[1730389329494,9.65853353,170.68,170.63,9.65853353]
[1730389329666,9.65853353,170.68,170.62,9.65853353]
[1730389330477,15.51773353,170.68,170.63,9.65853353]
[1730389330674,15.51773353,170.68,170.62,9.65853353]
[1730389331192,15.51773353,170.68,170.59,9.65853353]
[1730389331193,9.65853353,170.65,170.59,9.65853353]
[1730389331393,9.65853353,170.64,170.58,9.65853353]
[1730389331690,9.65853353,170.61,170.56,9.65853353]
[1730389331985,9.65853353,170.61,170.55,9.65853353]
[1730389332187,9.65853353,170.62,170.56,9.65853353]
[1730389332378,9.65853353,170.63,170.57,9.65853353]
[1730389332574,5.8609,170.62,170.57,9.65853353]
[1730389333777,5.8609,170.62,170.56,9.65853353]
[1730389333778,26.18779,170.61,170.56,9.65853353]
[1730389334094,6.0623,170.61,170.57,9.65853353]
[1730389334501,6.0623,170.61,170.57,15.18994848]
[1730389334791,11.9236,170.61,170.57,15.18994848]
[1730389335291,15.18994848,170.6,170.55,21.05294848]
[1730389335593,27.11354848,170.61,170.56,15.18994848]
[1730389335796,5.8613,170.61,170.56,15.18994848]
[1730389336092,15.18994848,170.61,170.56,15.18994848]
[1730389336993,15.18994848,170.61,170.55,21.05294848]
[1730389337173,21.05154848,170.6,170.55,21.05294848]
[1730389338189,21.05154848,170.6,170.55,15.18994848]
[1730389338382,5.8616,170.6,170.55,15.18994848]
[1730389338686,5.8616,170.6,170.56,15.18994848]
[1730389338990,5.8603,170.64,170.59,15.18994848]
[1730389339192,5.8598,170.66,170.61,15.18994848]
[1730389339376,21.04974848,170.66,170.61,15.18994848]
[1730389340198,15.18994848,170.65,170.6,15.18994848]
[1730389340582,21.04974848,170.66,170.6,15.18994848]
[1730389341484,5.8598,170.66,170.62,15.18994848]
[1730389341675,5.8598,170.66,170.61,15.18994848]
[1730389341881,21.04974848,170.66,170.61,15.18994848]
[1730389342475,5.8598,170.66,170.61,15.18994848]
[1730389342881,21.04974848,170.66,170.61,15.18994848]
[1730389344099,5.8598,170.66,170.61,15.18994848]
[1730389345583,21.04974848,170.66,170.61,15.18994848]
[1730389347685,5.8598,170.66,170.61,15.18994848]
[1730389349796,21.63354848,170.69,170.63,15.18994848]
[1730389350001,5.8589,170.68,170.64,15.18994848]
[1730389350202,15.18994848,170.71,170.65,15.18994848]
[1730389350408,21.04774848,170.71,170.66,15.18994848]
[1730389351402,5.8578,170.71,170.66,15.18994848]
[1730389351784,5.8578,170.71,170.69,15.18994848]
[1730389351990,5.8572,170.73,170.69,15.18994848]
[1730389352290,21.04714848,170.73,170.68,15.18994848]
[1730389352987,5.8572,170.73,170.68,15.18994848]
[1730389353897,21.04714848,170.73,170.68,15.18994848]
[1730389355992,15.18994848,170.71,170.66,15.18994848]
[1730389356189,15.18994848,170.71,170.65,15.18994848]
[1730389356394,15.18994848,170.67,170.62,15.18994848]
[1730389356586,15.18994848,170.66,170.61,29.84304848]
[1730389356788,9.71681942,170.66,170.61,24.36991942]
[1730389357998,5.8599,170.65,170.61,24.36991942]
[1730389358311,5.8599,170.65,170.62,9.71681942]
[1730389358494,5.8599,170.65,170.61,35.69598011]
[1730389359599,5.8596,170.66,170.61,35.69598011]
[1730389360189,21.04118011,170.66,170.61,35.69598011]
[1730389361410,21.04118011,170.66,170.61,29.83468011]
[1730389365498,15.18158011,170.65,170.61,14.6531]
[1730389365697,21.04118011,170.66,170.61,35.69598011]
[1730389372810,15.18158011,170.65,170.61,14.6531]
[1730389373920,21.04168011,170.65,170.61,14.6531]
[1730389374612,15.18158011,170.64,170.59,5.8619]
[1730389375123,5.8601,170.65,170.56,15.18158011]
[1730389375124,15.18158011,170.61,170.56,15.18158011]
[1730389375699,5.8592,170.67,170.6,15.18158011]
[1730389375904,22.00462451,170.69,170.66,5.8596]
[1730389376105,21.7462,170.69,170.6,20.5157]
[1730389377205,21.7462,170.69,170.6,14.6541]
[1730389377407,15.18158011,170.68,170.63,15.18158011]
[1730389377719,15.18158011,170.68,170.6,14.6541]
[1730389377720,36.92778011,170.69,170.64,15.18158011]
[1730389378305,36.92778011,170.69,170.63,15.18158011]
[1730389378508,31.46039067,170.69,170.63,9.71419067]
[1730389378925,9.71419067,170.68,170.62,15.57489067]
[1730389380028,15.57319067,170.68,170.62,15.57489067]
[1730389380226,9.71419067,170.67,170.62,15.57489067]
[1730389380804,5.859,170.68,170.56,9.71419067]
[1730389380805,0.12549,170.63,170.56,9.71419067]
[1730389381027,0.12549,170.63,170.54,1.48158019]
[1730389381028,9.71419067,170.57,170.53,5.864]
[1730389381519,20.12549,170.64,170.53,20.5241]
[1730389382125,5.8606,170.63,170.53,20.5241]
[1730389382308,9.71419067,170.59,170.53,24.37429067]
[1730389382628,9.71419067,170.55,170.53,14.6601]
[1730389382814,16.42337318,170.62,170.53,14.6601]
[1730389382815,9.71419067,170.56,170.53,14.6601]
[1730389383426,9.71419067,170.54,170.52,0.6104753]
[1730389383922,9.71419067,170.58,170.52,30.84986597]
[1730389384236,9.71419067,170.56,170.52,21.1356753]
[1730389386624,9.71419067,170.55,170.52,21.1356753]
[1730389387213,9.71419067,170.56,170.52,21.1356753]
[1730389388619,5.8625,170.58,170.52,30.84986597]
[1730389388620,9.71419067,170.58,170.52,30.84986597]
[1730389388813,9.71419067,170.58,170.53,9.71419067]
[1730389389015,9.71419067,170.58,170.52,30.84986597]
[1730389389311,9.71419067,170.56,170.52,21.1356753]
[1730389389531,9.71419067,170.55,170.52,21.1356753]
[1730389389734,9.71419067,170.56,170.52,21.1356753]
[1730389390641,9.71419067,170.54,170.52,0.6104753]
[1730389390820,9.71419067,170.53,170.52,0.6104753]
[1730389391220,9.71419067,170.54,170.52,6.4748753]
[1730389391431,9.71419067,170.55,170.52,6.4748753]
[1730389392346,9.71419067,170.53,170.52,0.6104753]
[1730389392729,9.71419067,170.54,170.52,0.6104753]
[1730389393425,9.71419067,170.55,170.52,6.4748753]
[1730389393740,9.71419067,170.58,170.52,30.85006597]
[1730389393919,9.71419067,170.59,170.53,9.71419067]
[1730389394531,9.71419067,170.59,170.54,20.523]
[1730389394945,9.71419067,170.58,170.54,20.523]
[1730389395122,9.71419067,170.56,170.54,20.523]
[1730389395438,9.71419067,170.55,170.54,14.6593]
[1730389395823,9.71419067,170.56,170.54,14.6593]
[1730389396139,9.71419067,170.57,170.54,14.6593]
[1730389396648,15.19739559,170.57,170.54,14.6593]
[1730389396850,15.19739559,170.59,170.54,14.6593]
[1730389397344,15.19739559,170.58,170.54,14.6593]
[1730389397734,15.19739559,170.59,170.54,14.6593]
[1730389398040,15.19739559,170.58,170.54,20.523]
[1730389398731,15.19739559,170.57,170.54,20.523]
[1730389399037,15.19739559,170.57,170.54,14.6593]
[1730389399449,15.19739559,170.58,170.54,14.6593]
[1730389400845,15.19739559,170.58,170.54,20.523]
[1730389401222,15.19739559,170.6,170.55,15.19739559]
[1730389401422,15.19739559,170.6,170.54,20.523]
[1730389401423,15.19739559,170.62,170.56,15.19739559]
[1730389402540,15.19739559,170.62,170.58,15.19739559]
[1730389402541,5.861,170.62,170.58,15.19739559]
[1730389402750,37.29709559,170.63,170.58,15.19739559]
[1730389402751,21.05799559,170.63,170.58,15.19739559]
[1730389402953,27.17661414,170.64,170.59,15.19739559]
[1730389403120,27.17661414,170.64,170.58,15.19739559]
[1730389403444,15.19739559,170.63,170.58,15.19739559]
[1730389403822,21.05819559,170.63,170.58,21.05959559]
[1730389404623,15.19739559,170.62,170.57,29.85409559]
[1730389404828,15.19739559,170.61,170.57,20.5193]
[1730389405952,15.19739559,170.61,170.57,14.6567]
[1730389407323,15.19739559,170.6,170.57,14.6567]
[1730389407537,15.19739559,170.58,170.51,14.6614]
[1730389407737,15.19739559,170.57,170.51,29.85879559]
[1730389407938,15.19739559,170.57,170.52,15.80787089]
[1730389408132,15.19739559,170.57,170.52,21.67227089]
[1730389408339,15.19739559,170.57,170.52,6.4748753]
[1730389409446,15.19739559,170.56,170.52,6.4748753]
[1730389409839,14.69739559,170.56,170.52,6.4748753]
[1730389410445,15.19739559,170.57,170.52,6.4748753]
[1730389410648,15.19739559,170.57,170.52,21.67227089]
[1730389411364,15.19739559,170.58,170.52,21.67227089]
[1730389411850,5.8626,170.57,170.52,21.67227089]
[1730389412554,15.19739559,170.58,170.52,21.67227089]
[1730389412748,15.19739559,170.59,170.53,15.19739559]
[1730389413348,15.19739559,170.59,170.54,15.19739559]
[1730389413862,15.19739559,170.59,170.55,5.8633]
[1730389416436,9.72467154,170.59,170.55,5.8633]
[1730389417458,9.72467154,170.59,170.54,20.5226]
[1730389421170,15.58677154,170.59,170.54,20.5226]
[1730389422259,9.72467154,170.58,170.54,20.5226]
[1730389424763,9.72467154,170.57,170.54,20.5226]
[1730389425464,9.72467154,170.57,170.54,14.6589]
[1730389426053,9.72467154,170.57,170.52,10.33514684]
[1730389426054,9.72467154,170.56,170.52,0.6104753]
[1730389426257,9.72467154,170.56,170.52,6.4746753]
[1730389428972,9.72467154,170.56,170.52,21.1356753]
[1730389431844,9.72467154,170.54,170.52,21.1356753]
[1730389433272,9.72467154,170.55,170.52,21.1356753]
[1730389433673,9.72467154,170.54,170.52,21.1356753]
[1730389435059,9.72467154,170.55,170.52,21.1356753]
[1730389436069,5.8629,170.57,170.52,0.6104753]
[1730389436070,9.72467154,170.54,170.52,0.6104753]
[1730389436450,5.8633,170.56,170.52,0.6104753]
[1730389436451,9.72467154,170.55,170.52,0.6104753]
[1730389436653,9.72467154,170.57,170.52,30.86044684]
[1730389438279,37.81837154,170.59,170.53,9.72467154]
[1730389438677,31.95627154,170.59,170.53,9.72467154]
[1730389438971,9.72467154,170.59,170.53,9.72467154]
[1730389439550,15.58667154,170.59,170.53,9.72467154]
[1730389439750,9.72467154,170.58,170.53,9.72467154]
[1730389440659,9.72467154,170.58,170.54,5.8637]
[1730389440862,9.72467154,170.58,170.54,20.523]
[1730389442774,9.72467154,170.59,170.54,20.523]
[1730389443974,15.58667154,170.59,170.54,20.523]
[1730389445490,9.72467154,170.6,170.55,9.72467154]
[1730389445856,9.72467154,170.61,170.55,9.72467154]
[1730389446685,15.58617154,170.61,170.56,5.863]
[1730389447574,9.72467154,170.6,170.56,5.863]
[1730389449268,15.58647154,170.6,170.56,5.863]
[1730389449583,15.58647154,170.6,170.54,24.38397154]
[1730389449758,15.58647154,170.6,170.55,20.5217]
[1730389450253,9.72467154,170.61,170.56,9.72467154]
[1730389450657,21.70419009,170.64,170.58,9.72467154]
[1730389450872,15.58517154,170.64,170.59,9.72467154]
[1730389451079,15.58427154,170.66,170.61,9.72467154]
[1730389451472,31.75997154,170.67,170.62,9.72467154]
[1730389451683,9.72467154,170.68,170.64,5.8602]
[1730389452457,9.72467154,170.67,170.64,20.5109]
[1730389453376,9.72467154,170.67,170.64,14.6507]
[1730389453772,15.58357154,170.68,170.64,14.6507]
[1730389454370,38.06791098,170.71,170.66,9.72467154]
[1730389454674,31.97157154,170.71,170.66,9.72467154]
[1730389455171,9.72467154,170.73,170.68,9.72467154]
[1730389455382,9.72467154,170.74,170.68,9.72467154]
[1730389455591,9.72467154,170.73,170.69,20.5049]
[1730389456289,9.72467154,170.72,170.67,15.58387154]
[1730389456476,9.72467154,170.72,170.67,5.8592]